fUST/lending_fUST_20250924
["ID","MTS","AMOUNT","RATE_DAILY","PERIOD"]
[387430491,1758727862806,-480.0,0.00022191,2]
[387430494,1758727862826,-480.0,0.00022191,2]
[387430496,1758727862839,-728.4,0.00022191,2]
[387430499,1758727862858,-3239.47,0.00022191,2]
[387430502,1758727862874,-775.95,0.00022191,2]
[387430505,1758727862891,-1802.05,0.00022191,2]
[387430507,1758727862904,-480.0,0.00022191,2]
[387430510,1758727862919,-480.0,0.00022191,2]
[387430512,1758727862934,-497.0,0.00022191,2]
[387430515,1758727862950,-561.2,0.00022191,2]
[387430518,1758727862965,-755.28,0.00022191,2]
[387430520,1758727862979,-5834.47331853,0.00022231,2]
[387430522,1758727862994,-471.0,0.00022288,2]
[387430525,1758727863009,-634.0,0.00022306,2]
[387430527,1758727863025,-2159.0,0.00022306,2]
[387430530,1758727863044,-410.0,0.00022306,2]
[387430532,1758727863059,-705.9883882,0.00022331,2]
[387430535,1758727863069,-1445.76,0.00022353,2]
[387430537,1758727863081,-190.9387615,0.00022388,2]
[387430539,1758727863092,-166.9624438,0.00022388,2]
[387430541,1758727863102,-551.5812636,0.00022388,2]
[387430543,1758727863116,-560.0,0.0002242,2]
[387430545,1758727863126,-851.19360881,0.00022453,2]
[387430547,1758727863136,-480.0,0.00022465,2]
[387430549,1758727863148,-577.86,0.00022465,2]
[387430551,1758727863159,-510.3,0.00022465,2]
[387430553,1758727863169,-480.0,0.00022465,2]
[387430555,1758727863179,-480.0,0.00022465,2]
[387430557,1758727863190,-582.3,0.00022465,2]
[387430560,1758727863200,-654.83,0.00022465,2]
[387430562,1758727863210,-480.0,0.00022465,2]
[387430564,1758727863220,-739.4,0.00022465,2]
[387430566,1758727863229,-732.78,0.00022465,2]
[387430568,1758727863239,-1333.71,0.00022465,2]
[387430570,1758727863250,-480.0,0.00022465,2]
[387430572,1758727863260,-480.0,0.00022465,2]
[387430574,1758727863270,-538.5,0.00022465,2]
[387430576,1758727863280,-1405.86,0.00022465,2]
[387430578,1758727863291,-480.0,0.00022465,2]
[387430580,1758727863301,-738.07,0.00022465,2]
[387430582,1758727863311,-1468.8,0.00022465,2]
[387430584,1758727863322,-883.11,0.00022465,2]
[387430586,1758727863332,-1074.53,0.00022465,2]
[387430614,1758727863603,-610.22,0.00022465,2]
[387430617,1758727863626,-621.27,0.00022465,2]
[387430620,1758727863638,-480.0,0.00022465,2]
[387430622,1758727863648,-480.0,0.00022465,2]
[387430623,1758727863659,-728.4,0.00022465,2]
[387430625,1758727863670,-3239.47,0.00022465,2]
[387430627,1758727863681,-775.95,0.00022465,2]
[387430629,1758727863691,-1802.05,0.00022465,2]
[387430631,1758727863700,-480.0,0.00022465,2]
[387430633,1758727863709,-480.0,0.00022465,2]
[387430635,1758727863718,-497.0,0.00022465,2]
[387430637,1758727863728,-561.2,0.00022465,2]
[387430638,1758727863738,-755.28,0.00022465,2]
[387430640,1758727863747,-296.7110155,0.00022521,2]
[387430643,1758727863757,-162.2253934,0.00022521,2]
[387430644,1758727863767,-586.1331603,0.00022521,2]
[387430647,1758727863777,-296.7110155,0.00022521,2]
[387430648,1758727863787,-162.2253934,0.00022521,2]
[387430650,1758727863797,-296.7110155,0.00022521,2]
[387430652,1758727863807,-162.2253934,0.00022521,2]
[387430654,1758727863816,-162.2253934,0.00022521,2]
[387430656,1758727863826,-296.7110155,0.00022521,2]
[387430658,1758727863835,-296.7110155,0.00022521,2]
[387430660,1758727863845,-471.0,0.00022562,2]
[387430662,1758727863856,-168.0,0.0002265,2]
[387430664,1758727863866,-229.919,0.00022667,2]
[387430666,1758727863875,-500.0,0.00022721,2]
[387430668,1758727863885,-500.0,0.00022721,2]
[387430670,1758727863895,-480.0,0.00022739,2]
[387430672,1758727863904,-577.86,0.00022739,2]
[387430674,1758727863915,-510.3,0.00022739,2]
[387430676,1758727863924,-480.0,0.00022739,2]
[387430678,1758727863934,-480.0,0.00022739,2]
[387430680,1758727863946,-582.3,0.00022739,2]
[387430682,1758727863956,-654.83,0.00022739,2]
[387430684,1758727863966,-480.0,0.00022739,2]
[387430686,1758727863976,-739.4,0.00022739,2]
[387430688,1758727863986,-732.78,0.00022739,2]
[387430690,1758727863996,-1333.71,0.00022739,2]
[387430692,1758727864007,-480.0,0.00022739,2]
[387430694,1758727864018,-480.0,0.00022739,2]
[387430696,1758727864027,-538.5,0.00022739,2]
[387430698,1758727864040,-1405.86,0.00022739,2]
[387430700,1758727864050,-480.0,0.00022739,2]
[387430702,1758727864061,-738.07,0.00022739,2]
[387430704,1758727864071,-1468.8,0.00022739,2]
[387430706,1758727864081,-883.11,0.00022739,2]
[387430708,1758727864091,-1074.53,0.00022739,2]
[387430710,1758727864101,-610.22,0.00022739,2]
[387430712,1758727864116,-621.27,0.00022739,2]
[387430714,1758727864127,-480.0,0.00022739,2]
[387430716,1758727864137,-480.0,0.00022739,2]
[387430718,1758727864148,-728.4,0.00022739,2]
[387430720,1758727864158,-3239.47,0.00022739,2]
[387430722,1758727864168,-775.95,0.00022739,2]
[387430724,1758727864177,-1802.05,0.00022739,2]
[387430726,1758727864188,-480.0,0.00022739,2]
[387430728,1758727864198,-480.0,0.00022739,2]
[387430730,1758727864208,-497.0,0.00022739,2]
[387430732,1758727864218,-561.2,0.00022739,2]
[387430734,1758727864227,-755.28,0.00022739,2]
[387430736,1758727864238,-587.0,0.00022774,2]
[387430738,1758727864248,-471.0,0.00022836,2]
[387430740,1758727864258,-168.0,0.00022869,2]
[387430742,1758727864267,-153.0,0.00022877,2]
[387430743,1758727864276,-153.0,0.00022877,2]
[387430745,1758727864286,-265.0,0.00022896,2]
[387430747,1758727864296,-700.0,0.00022927,2]
[387430749,1758727864305,-660.0,0.00022968,2]
[387430751,1758727864315,-160.0,0.00023,2]
[387430753,1758727864325,-18355.20474133,0.00023,3]
[387430756,1758727864342,-2390.665,0.00023,3]
[387430758,1758727864354,-6565.91124211,0.00023,3]
[387430760,1758727864364,-532.2324375,0.00023,3]
[387430762,1758727864374,-480.0,0.00023013,2]
[387430764,1758727864384,-577.86,0.00023013,2]
[387430766,1758727864394,-510.3,0.00023013,2]
[387430768,1758727864405,-480.0,0.00023013,2]
[387430770,1758727864414,-480.0,0.00023013,2]
[387430772,1758727864425,-582.3,0.00023013,2]
[387430774,1758727864435,-654.83,0.00023013,2]
[387430776,1758727864445,-480.0,0.00023013,2]
[387430777,1758727864455,-739.4,0.00023013,2]
[387430779,1758727864465,-732.78,0.00023013,2]
[387430781,1758727864475,-133.79424863,0.00023013,2]
[387430783,1758727864487,-1199.91575137,0.00023013,2]
[387430785,1758727864497,-480.0,0.00023013,2]
[387430787,1758727864506,-109.42470006,0.00023013,2]
[387430835,1758727864990,-1000.0,0.00019178,2]
[387430837,1758727865000,-480.0,0.00019178,2]
[387430839,1758727865010,-480.0,0.00019178,2]
[387430841,1758727865019,-480.0,0.00019178,2]
[387430843,1758727865029,-480.0,0.00019178,2]
[387430844,1758727865043,-480.0,0.00019178,2]
[387430846,1758727865053,-197.118366,0.00019352,2]
[387430848,1758727865063,-151.0,0.00019352,2]
[387430850,1758727865072,-197.118366,0.00019352,2]
[387430852,1758727865082,-197.118366,0.00019452,2]
[387430854,1758727865092,-151.0,0.00019452,2]
[387430856,1758727865102,-418.72,0.00019452,2]
[387430858,1758727865113,-197.118366,0.00019452,2]
[387430860,1758727865122,-197.118366,0.00019726,2]
[387430862,1758727865132,-151.0,0.00019726,2]
[387430864,1758727865142,-197.118366,0.0002,2]
[387430866,1758727865152,-151.0,0.0002,2]
[387430868,1758727865162,-197.118366,0.00020547,2]
[387430870,1758727865172,-151.0,0.00020547,2]
[387430872,1758727865182,-1000.0,0.00021918,2]
[387430873,1758727865192,-1000.0,0.00021918,2]
[387430875,1758727865202,-1000.0,0.00021918,2]
[387430877,1758727865211,-370.57529994,0.00023013,2]
[387430879,1758727865221,-538.5,0.00023013,2]
[387430881,1758727865232,-1405.86,0.00023013,2]
[387430883,1758727865242,-480.0,0.00023013,2]
[387430885,1758727865252,-738.07,0.00023013,2]
[387430887,1758727865262,-1468.8,0.00023013,2]
[387430889,1758727865272,-883.11,0.00023013,2]
[387430891,1758727865282,-1074.53,0.00023013,2]
[387430893,1758727865292,-610.22,0.00023013,2]
[387430895,1758727865303,-621.27,0.00023013,2]
[387430897,1758727865312,-480.0,0.00023013,2]
[387430899,1758727865323,-255.31,0.00023013,2]
[387430901,1758727865333,-728.4,0.00023013,2]
[387430902,1758727865342,-3239.47,0.00023013,2]
[387430904,1758727865352,-775.95,0.00023013,2]
[387430906,1758727865362,-1802.05,0.00023013,2]
[387430908,1758727865372,-480.0,0.00023013,2]
[387430910,1758727865382,-480.0,0.00023013,2]
[387430912,1758727865392,-497.0,0.00023013,2]
[387430914,1758727865402,-561.2,0.00023013,2]
[387430916,1758727865412,-755.28,0.00023013,2]
[387430918,1758727865422,-265.0,0.00023102,2]
[387430920,1758727865432,-265.0,0.00023105,2]
[387430922,1758727865442,-251.52420631,0.00023105,2]
[387430924,1758727865451,-471.0,0.0002311,2]
[387430926,1758727865460,-2100.70296981,0.0002312,2]
[387430928,1758727865472,-500.0,0.00023144,2]
[387430930,1758727865481,-150.0,0.000232,2]
[387430932,1758727865490,-265.0,0.00023205,2]
[387430933,1758727865499,-10965.22427524,0.0002322,2]
[387431900,1758728127169,157.0,0.000189,2]
[387431901,1758728127791,157.0,0.000189,2]
[387431903,1758728135173,157.0,0.000189,2]
[387431906,1758728302841,174.955183,0.00018202,2]
[387431907,1758728351191,160.0,8e-07,2]
[387431908,1758728363795,2000.0,0.000189,2]
[387431909,1758728364166,2000.0,0.000189,2]
[387431910,1758728364449,2000.0,0.000189,2]
[387431911,1758728364804,2000.0,0.000189,2]
[387431912,1758728365158,2000.0,0.000189,2]
[387431913,1758728365525,2000.0,0.000189,2]
[387431914,1758728365874,1688.313,0.000189,2]
[387431915,1758728366671,506.925,0.000189,2]
[387431923,1758728479680,302.50987853,0.00018602,2]
[387431938,1758728785960,4100.3429094,0.00018175,2]
[387431939,1758728791812,1375.0653955,0.00018175,2]
[387431940,1758728814116,-225.19293061,0.00019078,2]
[387431946,1758728896050,522.967513,0.00018174,2]
[387431947,1758728898365,613.9411443,0.00018174,2]
[387431949,1758728981757,-781.74440188,0.00019077,2]
[387431971,1758729032151,-837.58220458,0.00019078,2]
[387431972,1758729032161,-576.89526789,0.00019078,2]
[387431973,1758729032171,-576.89526788,0.00019127,2]
[387431974,1758729032180,-683.27,0.00019168,3]
[387431975,1758729032189,-52.30213957,0.00019172,2]
[387431976,1758729032229,-528.28687195,0.00019172,2]
[387431977,1758729032240,-619.41098848,0.00019172,2]
[387431978,1758729032250,-216.37747214,0.00019172,2]
[387431979,1758729032304,-83.62252786,0.00019172,2]
[387431980,1758729032314,-223.9803729,0.00019172,2]
[387432083,1758729038074,-63.0196271,0.00019172,2]
[387432085,1758729038084,-1200.0,0.00019172,2]
[387432087,1758729038094,-500.0,0.00019173,2]
[387432089,1758729038103,-500.0,0.00019173,2]
[387432091,1758729038113,-500.0,0.00019173,2]
[387432093,1758729038122,-500.0,0.00019173,2]
[387432095,1758729038132,-154.80372508,0.00019173,2]
[387432097,1758729038141,-23008.755909,0.00019173,2]
[387432099,1758729038151,-483.56563819,0.00019173,2]
[387432101,1758729038160,-500.0,0.00019173,2]
[387432103,1758729038169,-471.31682989,0.00019173,2]
[387432105,1758729038178,-500.0,0.00019173,2]
[387432107,1758729038188,-500.0,0.00019173,2]
[387432109,1758729038197,-500.0,0.00019173,2]
[387432111,1758729038207,-500.0,0.00019173,2]
[387432113,1758729038217,-500.0,0.00019173,2]
[387432115,1758729038226,-500.0,0.00019173,2]
[387432117,1758729038236,-500.0,0.00019173,2]
[387432119,1758729038246,-500.0,0.00019173,2]
[387432121,1758729038255,-503.11710688,0.00019173,2]
[387432124,1758729038265,-500.0,0.00019173,2]
[387432127,1758729038274,-576.89526788,0.00019175,2]
[387432130,1758729038284,-1303.2356753,0.00019177,2]
[387432133,1758729038293,-500.0,0.00019177,2]
[387432136,1758729038303,-286.73142141,0.00019177,2]
[387432138,1758729038312,-500.0,0.00019177,2]
[387432140,1758729038322,-358.19872953,0.00019177,2]
[387432142,1758729038331,-352.05451539,0.00019177,2]
[387432144,1758729038341,-500.0,0.00019177,2]
[387432146,1758729038351,-467.04244436,0.00019177,2]
[387432148,1758729038361,-500.0,0.00019177,2]
[387432150,1758729038374,-500.0,0.00019177,2]
[387432152,1758729038383,-500.0,0.00019177,2]
[387432153,1758729038393,-500.0,0.00019177,2]
[387432154,1758729038403,-500.0,0.00019177,2]
[387432155,1758729038413,-500.0,0.00019177,2]
[387432156,1758729038422,-500.0,0.00019177,2]
[387432157,1758729038432,-240.65431573,0.00019177,2]
[387432158,1758729038442,-500.0,0.00019177,2]
[387432159,1758729038452,-500.0,0.00019177,2]
[387432160,1758729038462,-500.0,0.00019177,2]
[387432161,1758729038471,-500.0,0.00019177,2]
[387432162,1758729038482,-500.0,0.00019177,2]
[387432163,1758729038492,-500.0,0.00019177,2]
[387432164,1758729038502,-500.0,0.00019177,2]
[387432165,1758729038512,-350.0,0.00019177,2]
[387432166,1758729038522,-500.0,0.00019177,2]
[387432167,1758729038532,-545.30362075,0.00019177,2]
[387432168,1758729038543,-495.0,0.00019177,2]
[387432169,1758729038552,-500.0,0.00019177,2]
[387432170,1758729038562,-500.0,0.00019177,2]
[387432171,1758729038572,-600.0,0.00019177,2]
[387432172,1758729038581,-500.0,0.00019177,2]
[387432173,1758729038592,-500.0,0.00019177,2]
[387432174,1758729038601,-500.0,0.00019177,2]
[387432175,1758729038612,-500.0,0.00019177,2]
[387432176,1758729038622,-500.0,0.00019177,2]
[387432177,1758729038632,-341.2536372,0.00019177,2]
[387432178,1758729038641,-500.0,0.00019177,2]
[387432179,1758729038652,-500.0,0.00019177,2]
[387432180,1758729038662,-500.0,0.00019177,2]
[387432182,1758729038671,-500.0,0.00019177,2]
[387432183,1758729038680,-500.0,0.00019177,2]
[387432185,1758729038689,-395.28960294,0.00019177,2]
[387432186,1758729038699,-500.0,0.00019177,2]
[387432189,1758729038709,-301.59549231,0.00019177,2]
[387432190,1758729038718,-632.72481264,0.00019177,2]
[387432193,1758729038728,-540.0,0.00019177,2]
[387432195,1758729038737,-480.0,0.00019178,2]
[387432197,1758729038747,-480.0,0.00019178,2]
[387432199,1758729038756,-480.0,0.00019178,2]
[387432201,1758729038765,-480.0,0.00019178,2]
[387432203,1758729038774,-480.0,0.00019178,2]
[387432205,1758729038784,-257.70820623,0.00019178,2]
[387432207,1758729038794,-480.0,0.00019178,2]
[387432209,1758729038803,-480.0,0.00019178,2]
[387432211,1758729038812,-480.0,0.00019178,2]
[387432213,1758729038821,-485.44253888,0.00019178,2]
[387432214,1758729038831,-482.18223813,0.00019178,2]
[387432216,1758729038840,-324.72383442,0.00019178,2]
[387432219,1758729038850,-489.53596761,0.00019178,2]
[387432221,1758729038861,-480.0,0.00019178,2]
[387432223,1758729038870,-480.0,0.00019178,2]
[387432224,1758729038879,-480.0,0.00019178,2]
[387432226,1758729038890,-480.0,0.00019178,2]
[387432227,1758729038899,-481.60542264,0.00019178,2]
[387432229,1758729038909,-501.52246738,0.00019178,2]
[387432231,1758729038919,-480.0,0.00019178,2]
[387432233,1758729038928,-480.0,0.00019178,2]
[387432235,1758729038938,-480.0,0.00019178,2]
[387432237,1758729038950,-626.62144246,0.00019178,2]
[387432239,1758729038960,-480.0,0.00019178,2]
[387432242,1758729038971,-480.0,0.00019178,2]
[387432243,1758729038980,-480.0,0.00019178,2]
[387432246,1758729038990,-480.0,0.00019178,2]
[387432248,1758729038999,-184.31655817,0.00019178,2]
[387432249,1758729039009,-480.0,0.00019178,2]
[387432251,1758729039018,-356.0687713,0.00019178,2]
[387432254,1758729039028,-480.0,0.00019178,2]
[387432256,1758729039039,-480.0,0.00019178,2]
[387432258,1758729039050,-480.0,0.00019178,2]
[387432260,1758729039060,-480.0,0.00019178,2]
[387432262,1758729039070,-480.0,0.00019178,2]
[387432264,1758729039080,-480.0,0.00019178,2]
[387432266,1758729039090,-480.0,0.00019178,2]
[387432268,1758729039100,-486.02115282,0.00019178,2]
[387432270,1758729039110,-480.0,0.00019178,2]
[387432272,1758729039120,-480.0,0.00019178,2]
[387432274,1758729039131,-577.80519111,0.00019178,2]
[387432276,1758729039140,-480.0,0.00019178,2]
[387432278,1758729039151,-480.0,0.00019178,2]
[387432279,1758729039160,-480.0,0.00019178,2]
[387432281,1758729039170,-480.0,0.00019178,2]
[387432284,1758729039180,-480.0,0.00019178,2]
[387432285,1758729039190,-587.3395948,0.00019178,2]
[387432287,1758729039200,-480.0,0.00019178,2]
[387432289,1758729039209,-480.0,0.00019178,2]
[387432291,1758729039219,-480.0,0.00019178,2]
[387432294,1758729039229,-480.0,0.00019178,2]
[387432296,1758729039239,-480.0,0.00019178,2]
[387432297,1758729039248,-480.0,0.00019178,2]
[387432299,1758729039258,-480.0,0.00019178,2]
[387432301,1758729039268,-480.0,0.00019178,2]
[387432303,1758729039278,-481.24176945,0.00019178,2]
[387432305,1758729039288,-480.0,0.00019178,2]
[387432308,1758729039298,-480.0,0.00019178,2]
[387432309,1758729039307,-480.0,0.00019178,2]
[387432312,1758729039317,-480.0,0.00019178,2]
[387432314,1758729039327,-480.0,0.00019178,2]
[387432316,1758729039336,-480.0,0.00019178,2]
[387432318,1758729039346,-480.0,0.00019178,2]
[387432319,1758729039356,-480.0,0.00019178,2]
[387432321,1758729039367,-480.0,0.00019178,2]
[387432323,1758729039379,-480.0,0.00019178,2]
[387432325,1758729039388,-480.0,0.00019178,2]
[387432338,1758729039504,-480.0,0.00019178,2]
[387432340,1758729039514,-480.0,0.00019178,2]
[387432342,1758729039524,-500.0,0.00019178,2]
[387432345,1758729039534,-480.0,0.00019178,2]
[387432348,1758729039544,-413.7168252,0.00019178,2]
[387432350,1758729039554,-480.0,0.00019178,2]
[387432352,1758729039564,-484.6241936,0.00019178,2]
[387432354,1758729039573,-443.0,0.00019178,2]
[387432356,1758729039583,-480.0,0.00019178,2]
[387432358,1758729039593,-480.0,0.00019178,2]
[387432360,1758729039603,-480.0,0.00019178,2]
[387432362,1758729039614,-480.0,0.00019178,2]
[387432364,1758729039624,-480.0,0.00019178,2]
[387432366,1758729039634,-480.0,0.00019178,2]
[387432368,1758729039643,-480.0,0.00019178,2]
[387432370,1758729039652,-480.0,0.00019178,2]
[387432372,1758729039662,-480.0,0.00019178,2]
[387432374,1758729039671,-480.0,0.00019178,2]
[387432376,1758729039682,-480.0,0.00019178,2]
[387432378,1758729039691,-480.0,0.00019178,2]
[387432380,1758729039701,-480.0,0.00019178,2]
[387432382,1758729039711,-480.0,0.00019178,2]
[387432384,1758729039720,-480.0,0.00019178,2]
[387432386,1758729039730,-480.0,0.00019178,2]
[387432388,1758729039739,-480.0,0.00019178,2]
[387432390,1758729039749,-480.0,0.00019178,2]
[387432392,1758729039759,-480.0,0.00019178,2]
[387432394,1758729039769,-480.0,0.00019178,2]
[387432396,1758729039778,-480.0,0.00019178,2]
[387432398,1758729039788,-480.0,0.00019178,2]
[387432400,1758729039798,-248.67274811,0.00019178,2]
[387432402,1758729039807,-480.0,0.00019178,2]
[387432405,1758729039816,-480.0,0.00019178,2]
[387432407,1758729039826,-480.0,0.00019178,2]
[387432409,1758729039836,-480.0,0.00019178,2]
[387432411,1758729039845,-480.0,0.00019178,2]
[387432413,1758729039855,-480.0,0.00019178,2]
[387432415,1758729039866,-480.0,0.00019178,2]
[387432417,1758729039876,-465.0,0.00019178,2]
[387432419,1758729039885,-480.0,0.00019178,2]
[387432421,1758729039896,-480.0,0.00019178,2]
[387432423,1758729039906,-480.0,0.00019178,2]
[387432425,1758729039915,-480.0,0.00019178,2]
[387432427,1758729039925,-480.0,0.00019178,2]
[387432429,1758729039935,-480.0,0.00019178,2]
[387432432,1758729039945,-336.39971712,0.00019178,2]
[387432434,1758729039954,-488.14524895,0.00019178,2]
[387432435,1758729039963,-480.0,0.00019178,2]
[387432438,1758729039973,-626.12908051,0.00019178,2]
[387432440,1758729039984,-480.0,0.00019178,2]
[387432442,1758729039993,-480.0,0.00019178,2]
[387432444,1758729040003,-560.0,0.00019178,2]
[387432446,1758729040013,-480.0,0.00019178,2]
[387432448,1758729040022,-480.0,0.00019178,2]
[387432450,1758729040031,-480.0,0.00019178,2]
[387432452,1758729040041,-400.83453316,0.00019178,2]
[387432454,1758729040050,-480.0,0.00019178,2]
[387432456,1758729040059,-480.0,0.00019178,2]
[387432458,1758729040069,-480.0,0.00019178,2]
[387432460,1758729040078,-480.0,0.00019178,2]
[387432462,1758729040088,-480.0,0.00019178,2]
[387432464,1758729040097,-480.0,0.00019178,2]
[387432466,1758729040108,-480.0,0.00019178,2]
[387432468,1758729040119,-480.0,0.00019178,2]
[387432470,1758729040128,-480.0,0.00019178,2]
[387432472,1758729040138,-482.50924181,0.00019178,2]
[387432474,1758729040148,-480.0,0.00019178,2]
[387432476,1758729040157,-480.0,0.00019178,2]
[387432478,1758729040168,-480.0,0.00019178,2]
[387432480,1758729040178,-480.0,0.00019178,2]
[387432482,1758729040187,-480.0,0.00019178,2]
[387432484,1758729040196,-480.0,0.00019178,2]
[387432486,1758729040206,-480.0,0.00019178,2]
[387432488,1758729040215,-482.11765516,0.00019178,2]
[387432490,1758729040225,-480.0,0.00019178,2]
[387432492,1758729040234,-480.0,0.00019178,2]
[387432494,1758729040243,-480.0,0.00019178,2]
[387432496,1758729040253,-480.0,0.00019178,2]
[387432498,1758729040263,-480.0,0.00019178,2]
[387432501,1758729040272,-480.0,0.00019178,2]
[387432503,1758729040282,-480.0,0.00019178,2]
[387432505,1758729040292,-480.0,0.00019178,2]
[387432507,1758729040301,-481.94513846,0.00019178,2]
[387432509,1758729040311,-480.0,0.00019178,2]
[387432511,1758729040320,-480.0,0.00019178,2]
[387432514,1758729040330,-482.32683334,0.00019178,2]
[387432517,1758729040339,-480.0,0.00019178,2]
[387432519,1758729040349,-480.0,0.00019178,2]
[387432523,1758729040358,-480.0,0.00019178,2]
[387432525,1758729040371,-480.0,0.00019178,2]
[387432528,1758729040381,-480.0,0.00019178,2]
[387432531,1758729040390,-480.0,0.00019178,2]
[387432534,1758729040400,-480.0,0.00019178,2]
[387432537,1758729040411,-480.0,0.00019178,2]
[387432540,1758729040421,-481.06071411,0.00019178,2]
[387432543,1758729040431,-480.0,0.00019178,2]
[387432546,1758729040441,-480.0,0.00019178,2]
[387432549,1758729040450,-480.0,0.00019178,2]
[387432552,1758729040461,-480.0,0.00019178,2]
[387432555,1758729040471,-480.0,0.00019178,2]
[387432558,1758729040481,-480.0,0.00019178,2]
[387432560,1758729040492,-480.0,0.00019178,2]
[387432562,1758729040503,-480.0,0.00019178,2]
[387432564,1758729040512,-482.90739514,0.00019178,2]
[387432566,1758729040522,-480.0,0.00019178,2]
[387432568,1758729040532,-465.09751842,0.00019178,2]
[387432570,1758729040542,-480.0,0.00019178,2]
[387432572,1758729040552,-480.0,0.00019178,2]
[387432574,1758729040562,-480.0,0.00019178,2]
[387432576,1758729040572,-480.0,0.00019178,2]
[387432578,1758729040582,-480.0,0.00019178,2]
[387432580,1758729040591,-480.0,0.00019178,2]
[387432582,1758729040601,-480.0,0.00019178,2]
[387432584,1758729040611,-480.0,0.00019178,2]
[387432586,1758729040621,-480.0,0.00019178,2]
[387432588,1758729040631,-484.66022316,0.00019178,2]
[387432590,1758729040641,-481.74739797,0.00019178,2]
[387432593,1758729040652,-480.57946496,0.00019178,2]
[387432595,1758729040665,-482.5857395,0.00019178,2]
[387432597,1758729040679,-480.0,0.00019178,2]
[387432600,1758729040692,-281.46552353,0.00019178,2]
[387432602,1758729040705,-482.0211243,0.00019178,2]
[387432604,1758729040716,-480.0,0.00019178,2]
[387432607,1758729040728,-480.0,0.00019178,2]
[387432609,1758729040741,-480.0,0.00019178,2]
[387432611,1758729040753,-480.0,0.00019178,2]
[387432613,1758729040765,-480.0,0.00019178,2]
[387432616,1758729040779,-480.0,0.00019178,2]
[387432618,1758729040791,-480.0,0.00019178,2]
[387432620,1758729040803,-480.0,0.00019178,2]
[387432623,1758729040816,-480.0,0.00019178,2]
[387432625,1758729040828,-480.0,0.00019178,2]
[387432627,1758729040841,-480.0,0.00019178,2]
[387432629,1758729040853,-480.0,0.00019178,2]
[387432632,1758729040864,-562.36009914,0.00019178,2]
[387432634,1758729040878,-480.0,0.00019178,2]
[387432636,1758729040889,-480.0,0.00019178,2]
[387432638,1758729040900,-480.0,0.00019178,2]
[387432641,1758729040913,-480.0,0.00019178,2]
[387432643,1758729040925,-480.0,0.00019178,2]
[387432645,1758729040936,-480.0,0.00019178,2]
[387432648,1758729040949,-480.0,0.00019178,2]
[387432650,1758729040960,-480.0,0.00019178,2]
[387432652,1758729040970,-480.0,0.00019178,2]
[387432654,1758729040980,-480.0,0.00019178,2]
[387432656,1758729040991,-484.0323542,0.00019178,2]
[387432658,1758729041003,-481.45887561,0.00019178,2]
[387432659,1758729041015,-480.0,0.00019178,2]
[387432661,1758729041028,-480.0,0.00019178,2]
[387432663,1758729041041,-483.29736481,0.00019178,2]
[387432665,1758729041053,-480.0,0.00019178,2]
[387432667,1758729041065,-480.0,0.00019178,2]